fUST/lending_fUST_20240525
["ID","MTS","AMOUNT","RATE_DAILY","PERIOD"]
[327909213,1716606638788,-1326.87930517,0.00010308,2]
[327909214,1716606638798,-417.64867022,0.00010773,2]
[327909215,1716606638807,-4227.33365889,0.00010796,2]
[327909216,1716606638817,-349.4,0.00010959,2]
[327909217,1716606638828,-1326.87930517,0.00011849,2]
[327909218,1716606638837,-153.0,0.00012685,2]
[327909219,1716606638846,-153.0,0.00012685,2]
[327909220,1716606638856,-204.6669975,0.00012685,2]
[327909221,1716606638866,-145.71787407,0.00012685,2]
[327909233,1716606642318,-7.28212593,0.00012685,2]
[327909234,1716606642328,-204.6669975,0.00012685,2]
[327909235,1716606642338,-204.6669975,0.00012685,2]
[327909236,1716606642348,-153.0,0.00012685,2]
[327909237,1716606642362,-204.6669975,0.00012685,2]
[327909238,1716606642372,-204.6669975,0.00012685,2]
[327909239,1716606642382,-153.0,0.00012685,2]
[327909240,1716606642391,-158.66167595,0.00012688,2]
[327909241,1716606642402,-155.2086528,0.00012694,2]
[327909242,1716606642411,-195.15346613,0.00012694,2]
[327909243,1716606642420,-1535.94734913,0.000129,2]
[327909244,1716606642434,-2384.80622558,0.000129,2]
[327909245,1716606642443,-3920.75357467,0.000129,2]
[327909246,1716606642453,-165.39400747,0.00012999,2]
[327909259,1716606644602,-376745.26797932,0.00012999,2]
[327909262,1716606644613,-51989.48085995,0.00013,2]
[327909263,1716606644623,-153.0,0.00013148,2]
[327909264,1716606644633,-2000.0,0.0001329,2]
[327909265,1716606644643,-1326.87930517,0.0001339,2]
[327909266,1716606644653,-88888.0,0.0001339,2]
[327909267,1716606644662,-3137.40772823,0.00013394,2]
[327909268,1716606644672,-1077.72903,0.0001349,2]
[327909269,1716606644681,-1077.72903,0.0001349,2]
[327909270,1716606644691,-668.064732,0.0001349,2]
[327909271,1716606644700,-668.064732,0.0001349,2]
[327909272,1716606644710,-2259.79231515,0.00013491,2]
[327909273,1716606644720,-210.90346252,0.00013492,2]
[327909274,1716606644730,-155.67240172,0.00013492,2]
[327909275,1716606644740,-237.26526712,0.00013492,2]
[327909276,1716606644752,-1717.16943979,0.00013492,2]
[327909277,1716606644761,-241.34730902,0.00013492,2]
[327909278,1716606644770,-1359.26831465,0.00013492,2]
[327909279,1716606644780,-155.07915044,0.00013492,2]
[327909280,1716606644790,-155.17693954,0.00013492,2]
[327909281,1716606644800,-200.0,0.00013492,2]
[327909282,1716606644810,-721.37008705,0.00013492,2]
[327909283,1716606644820,-281.75410999,0.00013492,2]
[327909284,1716606644831,-2599.40071805,0.00013492,2]
[327909285,1716606644841,-395.60607896,0.00013492,2]
[327909286,1716606644852,-1497.56271984,0.00013492,2]
[327909287,1716606644862,-2634.76958787,0.00013493,2]
[327909288,1716606644873,-155.30913095,0.00013493,2]
[327909289,1716606644885,-16974.07488917,0.00013493,2]
[327909297,1716606647393,-608.97317736,9.999e-05,2]
[327909298,1716606647403,-1887.40641283,0.00013493,2]
[327909300,1716606752775,25060.4170196,0.0002,11]
[327909306,1716606812310,12530.2085098,0.0002,11]
[327909307,1716606816375,700.63441385,0.00019178,7]
[327909308,1716606817416,200.0,0.00027,30]
[327909309,1716606870561,6265.10425491,0.0002,11]
[327909310,1716606924846,1450.80884896,0.0002,10]
[327909353,1716607832638,-2116.44274717,8.85e-05,2]
[327909356,1716607832648,-1340.12846768,8.851e-05,2]
[327909357,1716607832658,-1340.12846768,8.94e-05,2]
[327909359,1716607832668,-1455.50497863,8.941e-05,2]
[327909361,1716607832677,-54669.13958427,8.941e-05,2]
[327909363,1716607832689,-635.79487883,8.941e-05,2]
[327909365,1716607832702,-1007.88974121,8.941e-05,2]
[327909367,1716607832714,-570.87837969,8.941e-05,2]
[327909424,1716607839473,-258.89243828,8.761e-05,2]
[327909459,1716607845033,-959.14717265,8.761e-05,2]
[327909460,1716607845043,-715.64654383,8.849e-05,2]
[327909461,1716608129516,2231.1440984,0.0002,7]
[327909467,1716608688085,-2116.44274717,7.814e-05,2]
[327909468,1716608688121,-2599.89847911,7.814e-05,2]
[327909469,1716608688154,-395.68345474,7.814e-05,2]
[327909470,1716608688188,-154.90705577,7.815e-05,2]
[327909471,1716608688225,-1455.50497863,7.815e-05,2]
[327909472,1716608688258,-1870.13098848,7.816e-05,2]
[327909473,1716608688292,-685.23486931,7.817e-05,2]
[327909474,1716608688326,-10722.19742679,7.841e-05,2]
[327909475,1716608702368,-14177.80257321,7.841e-05,2]
[327909476,1716608740137,-2091.43127022,7.841e-05,2]
[327909477,1716608857954,-758.31809387,7.84e-05,2]
[327909478,1716608864032,-224.70364529,7.841e-05,2]
[327909479,1716608864069,-2091.43127022,7.841e-05,2]
[327909480,1716608878857,-315.21905493,7.863e-05,2]
[327909481,1716608878891,-443.09903894,7.864e-05,2]
[327909482,1716608881007,224.70364529,7.841e-05,2]
[327909484,1716608885052,2091.43127022,7.841e-05,2]
[327909485,1716608886004,-315.21905493,7.864e-05,2]
[327909486,1716608890652,-198.9049753,7.865e-05,2]
[327909487,1716608890686,-24900.0,7.865e-05,2]
[327909488,1716608897270,1000.0,0.00027,30]
[327909489,1716608924240,-820.12008693,7.763e-05,2]
[327909490,1716608945421,-298.22752391,7.449e-05,2]
[327909491,1716608949992,-232.32295669,7.841e-05,2]
[327909492,1716608950027,-215.19103746,7.841e-05,2]
[327909493,1716608972295,-1187.2446421,7.966e-05,2]
[327909494,1716608991261,10000.0,0.00027,30]
[327909495,1716609006123,100000.0,0.00027,30]
[327909496,1716609007438,-795.4018015,7.9e-05,2]
[327909497,1716609016989,-2091.43127022,7.966e-05,2]
[327909498,1716609017166,100000.0,0.00027,30]
[327909499,1716609028791,100000.0,0.00027,30]
[327909538,1716609038141,100000.0,0.00027,30]
[327909561,1716609038683,-1264.89050379,7.966e-05,2]
[327909562,1716609038693,-758.31809387,8.82e-05,2]
[327909563,1716609038704,-11067.33093083,8.821e-05,2]
[327909564,1716609038713,-6344.99593688,8.822e-05,2]
[327909565,1716609038724,-965.07616388,8.822e-05,2]
[327909581,1716609044075,-591.07861485,8.822e-05,2]
[327909583,1716609044085,-154.90705577,8.826e-05,2]
[327909584,1716609044095,-1340.12846768,8.828e-05,2]
[327909585,1716609044105,-306.49009474,8.85e-05,2]
[327909586,1716609044115,-215.83943252,8.937e-05,2]
[327909587,1716609044125,-155.38635448,8.938e-05,2]
[327909588,1716609044138,-387.14267303,8.938e-05,2]
[327909589,1716609044148,-772.71271102,8.939e-05,2]
[327909590,1716609044158,-657.24867269,8.939e-05,2]
[327909591,1716609044167,-278.24594851,8.939e-05,2]
[327909592,1716609044179,-286.22071336,8.939e-05,2]
[327909593,1716609044189,-155.17961982,8.939e-05,2]
[327909594,1716609044198,-155.17279527,8.939e-05,2]
[327909595,1716609044210,-9567.99465674,8.939e-05,2]
[327909596,1716609044220,-232.20003553,8.939e-05,2]
[327909597,1716609044231,-720.27106202,8.939e-05,2]
[327909598,1716609044240,-1502.5089444,8.939e-05,2]
[327909599,1716609044250,-1984.5429423,8.939e-05,2]
[327909600,1716609044260,-155.06193185,8.939e-05,2]
[327909601,1716609044270,-155.11627612,8.939e-05,2]
[327909602,1716609044280,-534.19646207,8.939e-05,2]
[327909603,1716609044290,-687.09531319,8.939e-05,2]
[327909604,1716609044300,-593.34019342,8.939e-05,2]
[327909605,1716609044310,-1052.05857303,8.939e-05,2]
[327909606,1716609044320,-457.35949496,8.94e-05,2]
[327909607,1716609044330,-531.02980444,8.94e-05,2]
[327909608,1716609044339,-155.19666134,8.94e-05,2]
[327909609,1716609044349,-42740.69148524,8.941e-05,2]
[327909610,1716609044360,-664.23575695,9.998e-05,2]
[327909611,1716609044371,-1151.84012163,9.999e-05,2]
[327909612,1716609044546,-9406.84773612,0.0001,2]
[327909613,1716609044559,-15000.0,0.0001,2]
[327909614,1716609044570,-644.08762312,0.0001,2]
[327909615,1716609044581,-412.51156087,0.00010698,2]
[327909616,1716609044591,-4227.33365889,0.00010744,2]
[327909617,1716609044603,-277.02,0.00010959,2]
[327909618,1716609044614,-230.85,0.00010959,2]
[327909619,1716609044624,-305.3904118,0.00011504,2]
[327909620,1716609044635,-153.0,0.00011656,2]
[327909621,1716609044649,-153.0,0.00011656,2]
[327909622,1716609044660,-153.0,0.00012078,2]
[327909623,1716609044670,-153.0,0.00012078,2]
[327909624,1716609044681,-644.08762308,0.00012195,2]
[327909625,1716609044692,-153.0,0.00012278,2]
[327909626,1716609044704,-153.0,0.00012278,2]
[327909627,1716609044718,-153.0,0.00012278,2]
[327909628,1716609044729,-307.5458463,0.00012278,2]
[327909629,1716609044739,-356.8077003,0.00012278,2]
[327909630,1716609044750,-153.0,0.00012278,2]
[327909631,1716609044761,-153.0,0.00012278,2]
[327909632,1716609044772,-204.6669975,0.00012278,2]
[327909633,1716609044782,-204.6669975,0.00012278,2]
[327909634,1716609044793,-153.0,0.00012278,2]
[327909635,1716609044804,-204.6669975,0.00012278,2]
[327909636,1716609044814,-153.0,0.0001233,2]
[327909637,1716609044825,-154.6369809,0.0001233,2]
[327909638,1716609044836,-153.0,0.0001233,2]
[327909639,1716609044847,-153.0,0.00012378,2]
[327909640,1716609044858,-153.0,0.00012378,2]
[327909641,1716609044869,-153.0,0.00012378,2]
[327909642,1716609044880,-306.0,0.00012398,2]
[327909643,1716609044891,-499.112,0.00012456,2]
[327909644,1716609044902,-152.695,0.00012456,2]
[327909645,1716609044913,-150.241,0.00012456,2]
[327909646,1716609044924,-408.8473258,0.00012578,2]
[327909647,1716609044935,-2940.56518102,0.000129,2]
[327909648,1716609044946,-2940.565181,0.00013276,2]
[327909649,1716609044960,-1452.71285147,0.00013358,2]
[327909650,1716609044970,-281.75410999,0.00013388,2]
[327909651,1716609044980,-269.43312445,0.00013388,2]
[327909652,1716609044990,-181.53244901,0.00013388,2]
[327909653,1716609044999,-156.13232817,0.00013388,2]
[327909654,1716609045009,-225.34201131,0.00013388,2]
[327909655,1716609045018,-231.70060982,0.00013388,2]
[327909656,1716609045028,-835.98011764,0.00013388,2]
[327909657,1716609045039,-231.15046877,0.00013388,2]
[327909658,1716609045050,-155.85879984,0.00013388,2]
[327909659,1716609045060,-392.96788427,0.00013388,2]
[327909660,1716609045070,-207.60123387,0.00013388,2]
[327909661,1716609045080,-410.70803407,0.00013388,2]
[327909662,1716609045091,-155.21411118,0.00013388,2]
[327909663,1716609045101,-261.96069104,0.00013388,2]
[327909664,1716609045111,-42252.0153618,0.00013489,2]
[327909665,1716609045120,-155.10264194,0.00013489,2]
[327909666,1716609045132,-818.52628448,0.00013491,2]
[327909667,1716609045144,-2372.15252454,0.00013491,2]
[327909668,1716609045154,-155.18307391,0.00013696,2]
[327909669,1716609045163,-19562.3753339,0.00013699,2]
[327909670,1716609045175,-3383.180681,0.00013699,2]
[327909671,1716609045185,-2406.93383036,0.00013699,2]
[327909680,1716609050931,89000.0,0.00027,30]
[327909686,1716610045676,100000.0,0.00027,30]
[327909687,1716610048556,100000.0,0.00027,30]
[327909688,1716610051160,-621.6698274,7.099e-05,2]
[327909689,1716610051182,-14.5675626,7.403e-05,2]
[327909690,1716610058669,100000.0,0.00027,30]
[327909691,1716610072801,100000.0,0.00027,30]
[327909736,1716610231977,-758.31809387,7.32e-05,2]
[327909737,1716610231986,-316.61744386,7.321e-05,2]
[327909738,1716610231995,-2599.89847911,7.322e-05,2]
[327909739,1716610232006,-1340.12846768,7.323e-05,2]
[327909740,1716610232015,-546.74672462,7.325e-05,2]
[327909741,1716610232025,-27259.80855223,7.486e-05,2]
[327909745,1716610237708,-10116.507245,7.486e-05,2]
[327909776,1716610328814,3744.0,0.00027,30]
[327909841,1716611365156,-758.31809387,7.135e-05,2]
[327909842,1716611365181,-2599.89847911,7.136e-05,2]
[327909843,1716611365204,-551.16749439,7.136e-05,2]
[327909844,1716611365224,-733.56314113,7.137e-05,2]
[327909845,1716611365244,-7901.15071561,7.138e-05,2]
[327909846,1716611365266,-10518.35727372,7.139e-05,2]
[327909847,1716611365286,-8594.04971518,7.159e-05,2]
[327909876,1716611431997,-250.0,6.53e-05,2]
[327909877,1716611432007,-321.16947052,7.159e-05,2]
[327909878,1716611432016,-220.71418011,7.394e-05,2]
[327909879,1716611432029,-2382.08584674,7.394e-05,2]
[327909880,1716611432039,-2248.49057764,7.394e-05,2]
[327909881,1716611432049,-758.31809387,7.394e-05,2]
[327909882,1716611432059,-3039.89725626,7.394e-05,2]
[327909883,1716611432068,-547.0464565,7.394e-05,2]
[327909884,1716611432078,-41997.82536246,7.395e-05,2]
[327909885,1716611432087,-551.43436187,7.395e-05,2]
[327909886,1716611432100,-51666.85850904,7.396e-05,2]
[327909887,1716611432109,-24864.07752479,7.397e-05,2]
[327909911,1716611438187,-35.92247521,7.397e-05,2]
[327909912,1716611438197,-386.45257388,7.663e-05,2]
[327909913,1716611438207,-1342.63176036,8.113e-05,2]
[327909914,1716611438217,-316.61744386,8.114e-05,2]
[327909915,1716611438226,-2116.44274717,8.396e-05,2]
[327909916,1716611438236,-157.02582366,8.396e-05,2]
[327909917,1716611438246,-3065.00544058,8.397e-05,2]
[327909918,1716611438255,-2488.9294217,9.418e-05,2]
[327909965,1716611441169,-16160.77057602,7.159e-05,2]
[327909966,1716611441182,-4200.0535397,9.418e-05,2]
[327909970,1716611443049,-385.989009,9.418e-05,2]
[327909971,1716611443387,-394.22731001,9.418e-05,2]
[327909974,1716611443400,-398.46632128,9.418e-05,2]
[327909975,1716611443410,-249.88392833,9.515e-05,2]
[327909977,1716611443420,-281.80268381,9.515e-05,2]
[327909979,1716611443429,-309.7831518,9.515e-05,2]
[327909981,1716611443439,-2636.83525359,9.515e-05,2]
[327909983,1716611443448,-16422.38850939,9.516e-05,2]
[327909985,1716611443458,-176.33158252,9.898e-05,2]
[327909987,1716611443467,-285.2556899,9.998e-05,2]
[327909988,1716611443476,-9406.84773612,0.0001,2]
[327909990,1716611443486,-15000.0,0.0001,2]
[327909992,1716611443495,-386.45257384,0.00010147,2]
[327909993,1716611443504,-4227.33365889,0.0001083,2]
[327909994,1716611443513,-192.38,0.00010959,2]
[327909995,1716611443522,-160.31,0.00010959,2]
[327909996,1716611443531,-801.59,0.00010959,2]
[327909997,1716611443542,-342.9726524,0.00011433,2]
[327909998,1716611443553,-150.0,0.00011991,2]
[327909999,1716611443562,-497.0,0.00011991,2]
[327910000,1716611443572,-154.9484062,0.00012356,2]
[327910001,1716611443581,-386.45257384,0.00012732,2]
[327910002,1716611443591,-209.591,0.00012932,2]
[327910003,1716611443600,-156.866,0.00012932,2]
[327910004,1716611443610,-150.747,0.00012932,2]
[327910005,1716611443619,-154.65031,0.00013358,2]
[327910006,1716611443628,-153.0,0.00013358,2]
[327910007,1716611443638,-153.0,0.00013358,2]
[327910008,1716611443647,-153.0,0.00013358,2]
[327910009,1716611443656,-153.0,0.00013358,2]
[327910010,1716611443665,-153.0,0.00013358,2]
[327910011,1716611443674,-153.0,0.00013358,2]
[327910012,1716611443684,-153.0,0.00013358,2]
[327910013,1716611443694,-153.0,0.00013358,2]
[327910014,1716611443703,-1162.17028117,0.00013562,2]
[327910015,1716611443713,-4601.55934525,0.00013597,2]
[327910016,1716611443734,-481.90139298,0.00013597,2]
[327910017,1716611443744,-1816.873655,0.00013699,2]
[327910018,1716611443754,-3000.0,0.00013699,2]
[327910019,1716611443764,-167.4720493,0.00013699,2]
[327910020,1716611443773,-151.0,0.00013699,2]
[327910021,1716611443783,-451.229239,0.00013699,2]
[327910022,1716611443793,-451.229239,0.00013699,2]
[327910023,1716611443804,-1046.303862,0.00013699,2]
[327910024,1716611443814,-1046.303862,0.00013699,2]
[327910025,1716611443824,-158.360739,0.00013699,2]
[327910026,1716611443834,-151.0,0.00013699,2]
[327910027,1716611443844,-151.0,0.00013699,2]
[327910028,1716611443854,-151.0,0.00013699,2]
[327910029,1716611443864,-151.0,0.00013699,2]
[327910030,1716611443874,-151.0,0.00013699,2]
[327910031,1716611443883,-151.565251,0.00013699,2]
[327910032,1716611443893,-255.625163,0.00013699,2]
[327910033,1716611443903,-151.0,0.00013699,2]
[327910034,1716611443912,-151.0,0.00013699,2]
[327910035,1716611443922,-168.262603,0.00013699,2]
[327910036,1716611443932,-845.381948,0.00013699,2]
[327910037,1716611443942,-168.262603,0.00013699,2]
[327910038,1716611443952,-845.381948,0.00013699,2]
[327910039,1716611443963,-845.381948,0.00013699,2]
[327910040,1716611443973,-168.262603,0.00013699,2]
[327910041,1716611443983,-845.381948,0.00013699,2]
[327910042,1716611443993,-168.262603,0.00013699,2]
[327910043,1716611444003,-151.0,0.00013699,2]
[327910044,1716611444012,-151.0,0.00013699,2]
[327910045,1716611444022,-710.496574,0.00013699,2]
[327910046,1716611444033,-710.496574,0.00013699,2]
[327910047,1716611444044,-710.496574,0.00013699,2]
[327910048,1716611444053,-710.496574,0.00013699,2]
[327910049,1716611444063,-233.502207,0.00013699,2]
[327910050,1716611444073,-233.502207,0.00013699,2]
[327910051,1716611444083,-151.0,0.00013699,2]
[327910052,1716611444092,-601.258258,0.00013699,2]
[327910053,1716611444106,-601.258258,0.00013699,2]
[327910054,1716611444116,-151.0,0.00013699,2]
[327910055,1716611444126,-151.0,0.00013699,2]
[327910056,1716611444135,-151.0,0.00013699,2]
[327910057,1716611444145,-454.498518,0.00013699,2]
[327910058,1716611444155,-454.498518,0.00013699,2]
[327910059,1716611444165,-151.0,0.00013699,2]
[327910060,1716611444177,-164.570862,0.00013699,2]
[327910061,1716611444187,-164.570862,0.00013699,2]
[327910062,1716611444197,-151.0,0.00013699,2]
[327910063,1716611444208,-233.502207,0.00013699,2]
[327910064,1716611444217,-233.502207,0.00013699,2]
[327910065,1716611444227,-283.86669786,0.000137,2]
[327910066,1716611444236,-920.10494263,0.00014,2]
[327910067,1716611444246,-306.0,0.00014727,2]
[327910068,1716611444256,-204.6274004,0.00014776,2]
[327910069,1716611444266,-204.6274004,0.00014776,2]
[327910070,1716611444275,-204.6274004,0.00014776,2]
[327910071,1716611444286,-204.6274004,0.00014776,2]
[327910072,1716611444296,-204.6274004,0.00014776,2]
[327910073,1716611444306,-204.6274004,0.00014776,2]
[327910074,1716611444316,-204.6274004,0.00014776,2]
[327910075,1716611444326,-204.6274004,0.00014776,2]
[327910076,1716611444335,-204.6274004,0.00014776,2]
[327910077,1716611444345,-204.6274004,0.00014776,2]
[327910078,1716611444356,-204.6274004,0.00014776,2]
[327910079,1716611444366,-204.6274004,0.00014776,2]
[327910080,1716611444376,-150.0,0.00014991,2]
[327910081,1716611444386,-2182.07532893,0.00014998,2]
[327910082,1716611444397,-685.11026498,0.00014998,2]
[327910083,1716611444407,-238.95770252,0.00014998,2]
[327910084,1716611444417,-160.27099543,0.00014998,2]
[327910085,1716611444427,-1722.15354249,0.00014998,2]
[327910086,1716611444438,-410.78184757,0.00014998,2]
[327910087,1716611444448,-1497.56271984,0.00014998,2]
[327910088,1716611444458,-151.0,0.00014998,2]
[327910089,1716611444468,-151.0,0.00014998,2]
[327910090,1716611444478,-151.0,0.00014998,2]
[327910091,1716611444488,-161.240762,0.00014998,2]
[327910092,1716611444498,-161.240762,0.00014998,2]
[327910093,1716611444507,-215.951299,0.00014998,2]
[327910094,1716611444517,-151.0,0.00014998,2]
[327910095,1716611444526,-188.710665,0.00014998,2]
[327910096,1716611444536,-188.710665,0.00014998,2]
[327910097,1716611444546,-188.710665,0.00014998,2]
[327910098,1716611444559,-188.710665,0.00014998,2]
[327910099,1716611444569,-151.0,0.00014998,2]
[327910100,1716611444579,-155.269053,0.00014998,2]
[327910101,1716611444589,-151.0,0.00014998,2]
[327910102,1716611444599,-151.0,0.00014998,2]
[327910103,1716611444610,-151.0,0.00014998,2]
[327910104,1716611444621,-186.056559,0.00014998,2]
[327910105,1716611444631,-186.056559,0.00014998,2]
[327910106,1716611444641,-186.056559,0.00014998,2]
[327910107,1716611444651,-186.056559,0.00014998,2]
[327910108,1716611444662,-151.0,0.00014998,2]
[327910109,1716611444672,-151.0,0.00014998,2]
[327910110,1716611444683,-151.0,0.00014998,2]
[327910111,1716611444694,-151.0,0.00014998,2]
[327910112,1716611444704,-346.632831,0.00014998,2]
[327910113,1716611444715,-346.632831,0.00014998,2]
[327910114,1716611444725,-346.632831,0.00014998,2]
[327910115,1716611444735,-346.632831,0.00014998,2]
[327910116,1716611444745,-151.0,0.00014998,2]
[327910117,1716611444755,-151.0,0.00014998,2]
[327910118,1716611444766,-151.0,0.00014998,2]
[327910119,1716611444776,-151.0,0.00014998,2]
[327910120,1716611444786,-151.0,0.00014998,2]
[327910121,1716611444797,-151.0,0.00014998,2]
[327910122,1716611444807,-1761.227503,0.00014998,2]
[327910123,1716611444817,-1761.227503,0.00014998,2]
[327910124,1716611444827,-1761.227503,0.00014998,2]
[327910125,1716611444837,-1761.227503,0.00014998,2]
[327910126,1716611444848,-210.779414,0.00014998,2]
[327910127,1716611444858,-151.0,0.00014998,2]
[327910128,1716611444868,-151.0,0.00014998,2]
[327910129,1716611444878,-151.0,0.00014998,2]
[327910130,1716611444887,-151.0,0.00014998,2]
[327910131,1716611444898,-969.956127,0.00014998,2]
[327910132,1716611444908,-969.956127,0.00014998,2]
[327910133,1716611444918,-969.956127,0.00014998,2]
[327910134,1716611444929,-969.956127,0.00014998,2]
[327910135,1716611444939,-623.257942,0.00014998,2]
[327910136,1716611444949,-623.257942,0.00014998,2]
[327910137,1716611444959,-623.257942,0.00014998,2]
[327910138,1716611444969,-623.257942,0.00014998,2]
[327910139,1716611444979,-151.0,0.00014998,2]
[327910140,1716611444989,-151.0,0.00014998,2]
[327910141,1716611445000,-601.258258,0.00014998,2]
[327910142,1716611445010,-601.258258,0.00014998,2]
[327910143,1716611445020,-601.258258,0.00014998,2]
[327910144,1716611445030,-601.258258,0.00014998,2]
[327910145,1716611445041,-151.0,0.00014998,2]
[327910146,1716611445051,-151.0,0.00014998,2]
[327910147,1716611445215,-151.0,0.00014998,2]
[327910148,1716611445226,-151.0,0.00014998,2]
[327910149,1716611445236,-151.0,0.00014998,2]
[327910150,1716611445245,-151.0,0.00014998,2]
[327910151,1716611445255,-151.0,0.00014998,2]
[327910152,1716611445265,-454.498518,0.00014998,2]
[327910153,1716611445275,-151.0,0.00014998,2]
[327910154,1716611445284,-454.498518,0.00014998,2]
[327910155,1716611445295,-454.498518,0.00014998,2]
[327910156,1716611445304,-454.498518,0.00014998,2]
[327910157,1716611445314,-454.498518,0.00014998,2]
[327910158,1716611445324,-454.498518,0.00014998,2]
[327910159,1716611445333,-151.0,0.00014998,2]
[327910160,1716611445342,-151.0,0.00014998,2]
[327910161,1716611445352,-151.0,0.00014998,2]
[327910162,1716611445363,-164.570862,0.00014998,2]
[327910163,1716611445372,-164.570862,0.00014998,2]
[327910164,1716611445381,-164.570862,0.00014998,2]
[327910165,1716611445391,-164.570862,0.00014998,2]
[327910167,1716611445400,-164.570862,0.00014998,2]
[327910168,1716611445410,-164.570862,0.00014998,2]
[327910169,1716611445419,-151.0,0.00014998,2]
[327910170,1716611445429,-151.0,0.00014998,2]
[327910171,1716611445439,-151.0,0.00014998,2]
[327910172,1716611445449,-151.0,0.00014998,2]
[327910173,1716611445460,-151.0,0.00014998,2]
[327910174,1716611445469,-152.361024,0.00014998,2]
[327910175,1716611445479,-451.229239,0.00014998,2]
[327910176,1716611445490,-451.229239,0.00014998,2]
[327910177,1716611445500,-451.229239,0.00014998,2]
[327910178,1716611445510,-451.229239,0.00014998,2]
[327910179,1716611445520,-451.229239,0.00014998,2]
[327910180,1716611445529,-451.229239,0.00014998,2]
[327910181,1716611445540,-1046.303862,0.00014998,2]
[327910183,1716611445550,-1046.303862,0.00014998,2]
[327910185,1716611445559,-1046.303862,0.00014998,2]
[327910187,1716611445568,-1046.303862,0.00014998,2]
[327910189,1716611445577,-1046.303862,0.00014998,2]
[327910191,1716611445587,-1046.303862,0.00014998,2]
[327910193,1716611445596,-151.0,0.00014998,2]
[327910195,1716611445606,-151.0,0.00014998,2]
[327910197,1716611445615,-151.0,0.00014998,2]
[327910199,1716611445625,-151.52173,0.00014998,2]
[327910200,1716611445634,-151.0,0.00014998,2]
[327910201,1716611445643,-151.0,0.00014998,2]
[327910202,1716611445653,-151.0,0.00014998,2]
[327910203,1716611445662,-151.0,0.00014998,2]
[327910204,1716611445672,-151.0,0.00014998,2]
[327910205,1716611445681,-151.0,0.00014998,2]
[327910206,1716611445691,-151.0,0.00014998,2]
[327910207,1716611445700,-151.0,0.00014998,2]
[327910208,1716611445709,-151.0,0.00014998,2]
[327910209,1716611445718,-151.0,0.00014998,2]
[327910210,1716611445727,-151.0,0.00014998,2]
[327910211,1716611445737,-151.0,0.00014998,2]
[327910212,1716611445746,-168.262603,0.00014998,2]
[327910213,1716611445755,-845.381948,0.00014998,2]
[327910214,1716611445765,-168.262603,0.00014998,2]
[327910215,1716611445774,-845.381948,0.00014998,2]
[327910216,1716611445783,-168.262603,0.00014998,2]
[327910217,1716611445794,-845.381948,0.00014998,2]
[327910218,1716611445803,-845.381948,0.00014998,2]
[327910219,1716611445812,-168.262603,0.00014998,2]
[327910220,1716611445821,-845.381948,0.00014998,2]
[327910221,1716611445830,-168.262603,0.00014998,2]
[327910222,1716611445840,-168.262603,0.00014998,2]
[327910223,1716611445849,-845.381948,0.00014998,2]
[327910224,1716611445858,-151.517262,0.00014998,2]
[327910225,1716611445867,-710.496574,0.00014998,2]
[327910226,1716611445876,-710.496574,0.00014998,2]
[327910227,1716611445885,-710.496574,0.00014998,2]
[327910228,1716611445894,-710.496574,0.00014998,2]
[327910229,1716611445903,-710.496574,0.00014998,2]
[327910230,1716611445912,-710.496574,0.00014998,2]
[327910231,1716611445921,-233.502207,0.00014998,2]
[327910232,1716611445930,-233.502207,0.00014998,2]
[327910233,1716611445939,-233.502207,0.00014998,2]
[327910234,1716611445949,-233.502207,0.00014998,2]
[327910235,1716611445957,-233.502207,0.00014998,2]
[327910236,1716611445966,-233.502207,0.00014998,2]
[327910237,1716611445976,-690.72744387,0.00014999,2]
[327910238,1716611445986,-836.12249757,0.00014999,2]
[327910239,1716611445994,-161.240762,0.00014999,2]
[327910240,1716611446003,-161.240762,0.00014999,2]
[327910241,1716611446012,-151.0,0.00014999,2]
[327910242,1716611446022,-186.056559,0.00014999,2]
[327910243,1716611446031,-186.056559,0.00014999,2]
[327910244,1716611446041,-151.0,0.00014999,2]
[327910245,1716611446050,-151.0,0.00014999,2]